bitfinex/quotes_ETHUSD_20240902
["timestamp","ask_amount","ask_price","bid_price","bid_amount"]
[1725302103238,7.9087,2528.9,2528.4,4.00131542]
[1725302103597,7.90867,2528.9,2528.4,4.00131542]
[1725302103899,3.95367,2529.3,2528.7,3.95457]
[1725302103900,3.95373,2529.3,2528.7,3.95457]
[1725302104130,3.954,2529.1,2528.8,0.04601284]
[1725302104450,3.95353,2529.4,2528.9,2.3734]
[1725302104619,3.95368,2529.3,2528.9,2.3734]
[1725302104961,3.95368,2529.3,2529.0,0.04587985]
[1725302105715,3.95383,2529.2,2529.0,0.04587985]
[1725302106223,3.95397,2529.1,2528.7,6.40468]
[1725302106614,5.7117546,2529.1,2528.7,2.4501]
[1725302107027,3.95436,2528.9,2528.6,7.28]
[1725302110061,7.90875,2528.9,2528.5,2.4745]
[1725302110239,3.95436,2528.9,2528.5,2.4745]
[1725302111740,7.90873,2528.9,2528.5,2.4745]
[1725302111958,3.95436,2528.9,2528.5,6.42939]
[1725302112170,3.95436,2528.9,2528.5,7.67632284]
[1725302112896,3.95448,2528.8,2528.5,3.72143284]
[1725302113184,3.95436,2528.9,2528.5,3.72143284]
[1725302114183,3.9542,2529.0,2528.6,0.90810301]
[1725302114345,3.9542,2529.0,2528.6,4.90891823]
[1725302115048,11.36172,2530.6,2528.9,3.95417]
[1725302115049,6.39447,2529.6,2528.9,3.95417]
[1725302115240,3.95336,2529.5,2529.0,3.95404]
[1725302115542,6.39447,2529.6,2529.1,6.36166]
[1725302115543,3.95321,2529.6,2529.1,6.36166]
[1725302115738,4.76843546,2529.6,2529.2,0.045579]
[1725302116491,3.9535,2529.4,2529.2,0.045579]
[1725302116779,3.9535,2529.4,2529.0,3.95407]
[1725302116780,3.9535,2529.4,2529.3,0.04532116]
[1725302117287,3.95378,2529.3,2528.7,6.95451]
[1725302117451,3.95382,2529.2,2528.7,9.34351]
[1725302117659,3.95382,2529.2,2528.7,10.79641175]
[1725302118016,3.95401,2529.1,2528.7,5.389]
[1725302118151,3.95401,2529.1,2528.7,2.389]
[1725302120583,3.95414,2529.0,2528.6,3.95462]
[1725302120795,4.744923,2529.0,2528.5,7.90978]
[1725302121084,9.6650346,2529.4,2528.8,3.95429]
[1725302121286,9.6650346,2529.4,2528.4,3.95503]
[1725302121287,3.95328,2529.6,2529.1,3.95389]
[1725302121470,3.95328,2529.6,2529.2,0.395389]
[1725302121658,3.95328,2529.6,2529.1,3.95388]
[1725302121841,3.95328,2529.6,2529.1,7.90777]
[1725302122041,3.95298,2529.8,2529.3,6.25056]
[1725302122984,7.90595,2529.8,2529.3,6.25056]
[1725302123201,3.95297,2529.8,2529.3,6.25056]
[1725302125162,3.95259,2530.0,2529.5,3.95331]
[1725302125367,7.90524,2530.0,2529.5,3.95331]
[1725302125691,3.95274,2529.9,2529.3,6.25041]
[1725302126094,4.979374,2530.0,2529.4,3.95342]
[1725302126409,2.3014,2529.9,2529.4,7.90684]
[1725302126608,2.3014,2529.9,2529.4,3.95342]
[1725302127192,2.3014,2529.9,2529.4,7.90684]
[1725302127584,3.95259,2530.0,2529.4,8.927214]
[1725302127968,7.90526,2530.0,2529.4,8.927214]
[1725302128175,3.95259,2530.0,2529.5,3.95324]
[1725302128482,3.95237,2530.2,2529.6,6.40345]
[1725302128793,3.95237,2530.2,2529.7,3.95295]
[1725302129390,3.95237,2530.2,2529.8,0.04428061]
[1725302129605,3.95237,2530.2,2529.7,3.95295]
[1725302129798,3.95237,2530.2,2529.9,0.04421752]
[1725302130005,3.95237,2530.2,2529.7,3.95295]
[1725302130209,3.95237,2530.2,2530.0,0.04404036]
[1725302130644,3.95237,2530.2,2529.7,5.10082934]
[1725302130851,3.95237,2530.2,2530.1,0.04397728]
[1725302131008,3.95237,2530.2,2529.7,5.10082934]
[1725302131348,3.95237,2530.2,2530.1,0.04397728]
[1725302131518,3.95237,2530.2,2529.7,5.10082934]
[1725302131849,3.95237,2530.2,2530.1,0.04397728]
[1725302132143,3.95237,2530.2,2529.7,5.10082934]
[1725302132351,7.90469,2530.2,2530.1,0.04397728]
[1725302132672,7.90469,2530.2,2528.7,2.3403]
[1725302132673,3.95396,2529.2,2528.7,2.3403]
[1725302132810,0.37913774,2530.1,2528.9,3.9542]
[1725302132811,2.4344,2529.6,2528.9,3.9542]
[1725302133006,5.67209674,2530.1,2529.2,3.9537]
[1725302133007,6.38723,2529.9,2529.2,3.9537]
[1725302133220,3.95283,2529.9,2529.3,3.0085]
[1725302133415,3.95283,2529.9,2529.3,6.33265]
[1725302133645,3.95292,2529.8,2529.3,10.28623]
[1725302133829,3.95292,2529.8,2529.4,1.028623]
[1725302134918,3.95343,2529.5,2529.3,2.3791]
[1725302135414,7.90691,2529.5,2529.3,2.3791]
[1725302135614,7.90688,2529.5,2529.1,2.4071]
[1725302135827,7.90688,2529.5,2529.2,0.636121]
[1725302136232,3.95351,2529.4,2529.2,0.636121]
[1725302136426,3.95351,2529.4,2529.1,2.4071]
[1725302136648,3.95374,2529.3,2528.9,5.2751]
[1725302137323,3.95351,2529.4,2528.9,5.2751]
[1725302137520,3.95351,2529.4,2529.0,1.318382]
[1725302137755,7.90711,2529.4,2529.0,1.318382]
[1725302138408,3.9537,2529.3,2529.0,1.318382]
[1725302139901,3.9537,2529.3,2528.9,2.2751]
[1725302142076,3.95383,2529.2,2528.9,2.2751]
[1725302142689,3.95383,2529.2,2529.0,18.97999514]
[1725302144478,3.95366,2529.3,2529.1,0.05181307]
[1725302144815,3.95366,2529.3,2529.1,2.17732258]
[1725302148818,3.95366,2529.3,2529.2,18.97999514]
[1725302149315,3.95366,2529.3,2529.2,19.0318319]
[1725302149740,3.95248,2530.1,2529.5,3.95321]
[1725302149953,2.4607,2530.9,2529.7,2.4502]
[1725302150103,5.71238912,2530.6,2530.1,2.2852]
[1725302150296,7.90315,2530.7,2530.2,0.623768]
[1725302150534,7.90315,2530.7,2530.2,0.6795403]
[1725302150535,3.95166,2530.6,2530.2,0.6795403]
[1725302150834,3.95164,2530.6,2530.2,0.6795403]
[1725302150997,3.95164,2530.6,2530.2,0.0557723]
[1725302151396,3.9518,2530.5,2530.2,0.0557723]
[1725302151635,1.76067912,2530.4,2530.2,0.0557723]
[1725302151813,3.9521,2530.3,2529.8,2.4193]
[1725302151998,3.95204,2530.4,2530.3,0.06130539]
[1725302152198,3.95204,2530.4,2529.9,4.4945]
[1725302152426,3.95204,2530.4,2530.3,0.06114899]
[1725302152600,3.95204,2530.4,2529.9,4.4945]
[1725302152799,3.95204,2530.4,2530.3,0.06114899]
[1725302153027,3.95204,2530.4,2530.0,1.086657]
[1725302153243,3.95204,2530.4,2530.3,0.06114899]
[1725302153535,3.95183,2530.5,2530.0,5.039217]
[1725302153739,3.95183,2530.5,2530.3,0.06114899]
[1725302153902,3.95183,2530.5,2530.0,5.039217]
[1725302154103,8.17401522,2530.7,2530.4,0.06104389]
[1725302154300,8.84232674,2530.7,2530.1,3.95238]
[1725302154608,3.95181,2530.5,2530.0,5.039117]
[1725302154826,3.95181,2530.5,2530.2,0.06125409]
[1725302155028,3.95181,2530.5,2530.1,0.0613592]
[1725302155246,3.95181,2530.5,2530.3,0.06114899]
[1725302155542,3.95181,2530.5,2530.2,0.06125409]
[1725302156327,7.90369,2530.5,2530.2,0.06125409]
[1725302156500,3.95181,2530.5,2530.2,0.06125409]
[1725302156714,3.95181,2530.5,2530.0,4.0314999]
[1725302156902,3.95181,2530.5,2530.3,0.06114899]
[1725302157103,3.95181,2530.5,2530.0,3.95246]
[1725302157104,7.90368,2530.5,2530.0,3.95246]
[1725302157303,7.90368,2530.5,2530.4,0.06104389]
[1725302157510,4.22241522,2530.7,2529.8,2.4193]
[1725302157739,3.95198,2530.4,2529.7,6.95301]
[1725302157943,3.95198,2530.4,2529.6,11.23308]
[1725302157944,3.95218,2530.3,2529.8,6.28546]
[1725302158251,3.95346,2529.5,2529.2,2.3326]
[1725302158400,3.95352,2529.4,2529.2,2.3326]
[1725302158601,3.95352,2529.4,2529.2,3.29386]
[1725302159750,3.95352,2529.4,2529.2,0.96126]
[1725302159909,3.95352,2529.4,2529.0,7.28]
[1725302160233,7.90712,2529.4,2529.0,7.28]
[1725302160435,3.95352,2529.4,2529.0,7.28]
[1725302161606,3.9539,2529.2,2529.0,7.28]
[1725302161914,7.90744,2529.3,2529.0,7.28]
[1725302162115,4.22241522,2529.6,2529.0,7.28]
[1725302162646,3.95347,2529.5,2529.0,7.28]
[1725302162948,3.95368,2529.3,2529.0,7.28]
[1725302163108,3.95368,2529.3,2529.0,11.12999951]
[1725302163556,3.95368,2529.3,2529.0,3.84999951]
[1725302163715,3.95389,2529.2,2528.8,18.97999514]
[1725302165255,3.9539,2529.2,2528.7,7.28]
[1725302165425,3.9539,2529.2,2528.8,3.0]
[1725302165753,3.95397,2529.1,2528.9,1.028]
[1725302165963,3.95397,2529.1,2528.8,3.0]
[1725302166123,3.95422,2529.0,2528.8,3.0]
[1725302166328,3.95413,2529.0,2528.7,7.28]
[1725302166562,3.95444,2528.8,2528.7,7.28]
[1725302166767,7.90901,2528.8,2528.3,9.5822]
[1725302166930,3.95444,2528.8,2528.4,2.85621951]
[1725302167259,3.95466,2528.7,2528.4,2.85621951]
[1725302167614,3.95466,2528.7,2528.5,3.0]
[1725302167958,3.95466,2528.7,2528.5,4.54384195]
[1725302169158,3.95444,2528.8,2528.5,4.54384195]
[1725302171222,3.95429,2528.9,2528.5,4.54384195]
[1725302174449,3.95393,2529.2,2528.7,2.4948]
[1725302174685,2.434,2529.5,2528.7,2.4948]
[1725302174686,7.90724,2529.4,2528.8,3.95429]
[1725302174978,3.95335,2529.5,2529.0,3.95411]
[1725302175476,3.95335,2529.5,2529.1,2.4272]
[1725302175638,8.17566522,2529.6,2529.1,2.4272]
[1725302175835,3.95346,2529.5,2529.1,2.4272]
[1725302177276,3.95325,2529.6,2529.1,3.1693671]
[1725302177583,3.95306,2529.7,2529.2,3.95381]
[1725302177878,3.953,2529.8,2529.2,1.10771771]
[1725302177879,3.9532,2529.6,2529.2,1.10771771]
[1725302178237,3.953,2529.8,2529.2,5.06150771]
[1725302178443,3.95312,2529.7,2529.3,0.74888777]
[1725302182694,3.95289,2529.8,2529.3,0.74888777]
[1725302182981,6.42553,2530.8,2530.1,3.95226]
[1725302183247,3.95143,2530.8,2530.2,3.95223]
[1725302183396,3.95111,2531.0,2530.5,3.95167]
[1725302183583,3.95111,2531.0,2530.5,6.32817]
[1725302183754,3.95135,2530.8,2530.5,2.3765]
[1725302183958,3.95135,2530.8,2530.3,3.95208]
[1725302184263,7.90226,2531.0,2530.3,4.742462]
[1725302184467,3.9511,2531.0,2530.4,3.95192]
[1725302184982,3.95067,2531.3,2530.8,3.95124]
[1725302185154,3.95063,2531.3,2530.7,7.90279]
[1725302185350,3.95062,2531.3,2530.7,7.90275]
[1725302185654,3.95062,2531.3,2530.7,7.90276]
[1725302185855,3.95062,2531.3,2530.7,4.03038276]
[1725302186297,7.90124,2531.3,2530.6,3.95152]
[1725302186796,7.90124,2531.3,2530.7,3.95142]
[1725302187224,3.95072,2531.2,2530.7,3.95142]
[1725302188076,3.95085,2531.1,2530.6,3.95152]
[1725302188277,2.4427,2531.2,2530.4,2.3572]
[1725302188504,3.9513,2530.9,2530.4,2.3572]
[1725302188884,3.9514,2530.8,2530.4,2.3572]
[1725302189724,3.9513,2530.9,2530.4,2.3572]
[1725302190286,3.95132,2530.8,2530.4,2.3572]
[1725302190598,7.90258,2530.9,2530.4,6.30914]
[1725302191496,3.95163,2530.6,2530.3,3.0]
[1725302191690,3.95179,2530.5,2530.1,7.28]
[1725302191883,3.95179,2530.5,2530.2,3.0]
[1725302193690,3.95179,2530.5,2530.1,7.28]
[1725302195001,3.95179,2530.5,2530.1,7.96224071]
[1725302195203,6.35092,2530.8,2530.1,7.96224071]
[1725302195404,3.95151,2530.7,2530.2,3.95215]
[1725302195613,3.95151,2530.7,2530.2,7.66342759]
[1725302196904,3.95163,2530.6,2530.2,3.71127759]
[1725302198279,7.90334,2530.6,2530.2,3.71127759]
[1725302198439,3.95202,2530.4,2530.1,7.28]
[1725302198640,7.90407,2530.4,2530.1,7.28]
[1725302198797,3.95202,2530.4,2530.1,7.28]
[1725302199459,3.95175,2530.6,2530.1,7.28]
[1725302199658,3.95225,2530.2,2530.1,7.28]
[1725302200012,3.95212,2530.3,2530.1,7.28]
[1725302200448,3.95206,2530.4,2530.1,7.28]
[1725302201251,3.95194,2530.5,2530.1,7.28]
[1725302201460,2.2576,2530.7,2530.1,11.23235]
[1725302201461,3.9517,2530.6,2530.1,11.23235]
[1725302201750,3.9517,2530.6,2530.2,3.95222]
[1725302202067,3.9517,2530.6,2530.2,6.28082]
[1725302202708,3.9517,2530.6,2530.2,2.3286]
[1725302203530,7.90341,2530.6,2530.2,2.3286]
[1725302204814,3.95138,2530.8,2530.2,2.3286]
[1725302205016,3.95202,2530.4,2530.1,7.28]
[1725302205521,3.9518,2530.5,2530.1,7.28]
[1725302205716,3.9518,2530.5,2530.1,11.29493556]
[1725302205955,3.95194,2530.4,2530.1,11.29493556]
[1725302206149,3.95194,2530.4,2530.1,7.28]
[1725302208390,3.95303,2529.7,2529.4,2.83913955]
[1725302208606,3.95326,2529.6,2529.4,2.2581]
[1725302208753,3.95326,2529.6,2529.2,2.2581]
[1725302209156,3.95337,2529.5,2529.2,2.2581]
[1725302210191,2.4706,2529.9,2529.0,2.4542]
[1725302210415,3.95374,2529.3,2529.0,2.4542]
[1725302210711,7.90751,2529.3,2529.0,3.095063]
[1725302210992,3.95395,2529.2,2529.0,2.4542]
[1725302211296,3.95395,2529.2,2528.7,3.9545]
[1725302211297,3.95397,2529.1,2528.7,2.2786]
[1725302212003,3.95443,2528.9,2528.5,2.2786]
[1725302212161,7.90886,2528.9,2528.6,0.623357]
[1725302212578,3.95443,2528.9,2528.6,0.623357]
[1725302212781,3.95441,2528.9,2528.6,0.623357]
[1725302212953,4.22241522,2529.2,2527.8,2.4185]
[1725302213176,3.95454,2528.8,2528.1,3.95543]
[1725302213414,3.95476,2528.6,2528.1,3.95543]
[1725302214197,3.95476,2528.6,2528.0,6.37407]
[1725302214366,3.95476,2528.6,2528.1,3.637407]
[1725302215372,7.9096,2528.6,2528.1,3.637407]
[1725302215661,2.3547,2529.0,2528.0,2.4185]
[1725302215662,3.95529,2528.3,2528.0,2.4185]
[1725302217212,3.95529,2528.3,2527.9,3.0]
[1725302218997,3.95494,2528.5,2528.0,3.95567]
[1725302219576,3.95494,2528.5,2528.0,3.95561]
[1725302220801,3.95509,2528.4,2528.0,3.95561]
[1725302221302,3.95509,2528.4,2527.9,3.0]
[1725302221799,3.95524,2528.3,2527.9,3.0]
[1725302222112,4.746264,2528.3,2528.0,0.06553896]
[1725302222312,3.95584,2528.0,2527.5,2.4135]
[1725302222511,3.956,2527.8,2527.2,6.37034]
[1725302222810,3.956,2527.8,2527.2,6.37032]
[1725302222960,3.95587,2527.9,2527.2,6.37032]
[1725302223162,3.95587,2527.9,2527.4,7.91309]
[1725302223423,3.95598,2527.9,2527.4,3.95662]
[1725302223709,3.956,2527.8,2527.4,3.95662]
[1725302223862,3.956,2527.8,2527.3,3.95678]
[1725302224295,3.956,2527.8,2527.4,3.95663]
[1725302225981,3.956,2527.8,2527.3,3.95678]
[1725302226690,6.4275,2527.8,2527.2,6.37034]
[1725302226874,10.3835,2527.8,2527.2,6.37034]
[1725302227891,3.956,2527.8,2527.2,6.37034]
[1725302228303,3.956,2527.8,2527.2,10.32717]
[1725302228552,3.956,2527.8,2527.3,0.07912741]
[1725302228843,3.95566,2528.1,2527.6,2.3078]
[1725302229132,3.95586,2527.9,2527.6,2.3078]
[1725302229288,3.9557,2528.0,2527.6,2.3078]
[1725302230309,3.95586,2527.9,2527.6,2.3078]
[1725302231286,3.95569,2528.0,2527.6,2.3078]
[1725302232530,3.95591,2527.9,2527.4,3.95662]
[1725302232735,3.956,2527.8,2527.3,2.3234]
[1725302233695,7.912,2527.8,2527.3,2.3234]
[1725302235029,3.956,2527.8,2527.3,10.2368]
[1725302235234,3.956,2527.8,2527.4,3.95659]
[1725302235921,3.9555,2528.2,2527.5,3.95642]
[1725302236127,3.9555,2528.2,2527.8,2.3234]
[1725302236341,3.95547,2528.2,2527.8,2.95929602]
[1725302236550,3.95563,2528.1,2527.7,0.0794102]
[1725302238234,3.95571,2528.0,2527.7,0.0794102]
[1725302238618,3.95574,2528.0,2527.7,0.0794102]
[1725302239045,3.95593,2527.9,2527.7,0.0794102]
[1725302239836,3.95574,2528.0,2527.7,0.0794102]
[1725302240044,3.95548,2528.2,2527.7,0.0794102]
[1725302240251,3.95548,2528.2,2527.8,2.3234]
[1725302240605,3.95556,2528.1,2527.8,2.3234]
[1725302241051,3.9552,2528.4,2527.9,3.95585]
[1725302241353,3.9552,2528.4,2527.9,3.95575]
[1725302241549,3.95517,2528.4,2527.9,3.95575]
[1725302241715,7.91035,2528.4,2528.0,0.627915]
[1725302242243,3.95565,2528.1,2527.7,1.17861122]
[1725302242445,3.95583,2528.0,2527.7,1.17861122]
[1725302242647,3.95586,2527.9,2527.7,0.0794102]
[1725302242831,3.95583,2528.0,2527.7,0.0794102]
[1725302243435,7.91164,2528.0,2527.7,0.0794102]
[1725302243692,3.95581,2528.0,2527.7,0.0794102]
[1725302244370,7.9116,2528.0,2527.7,0.0794102]
[1725302244567,3.95586,2527.9,2527.7,0.0794102]
[1725302246596,3.956,2527.8,2527.7,0.0794102]
[1725302249375,8.703192,2527.8,2527.7,0.0794102]
[1725302249587,7.912,2527.8,2527.7,0.0794102]
[1725302250499,3.956,2527.8,2527.7,0.0794102]
[1725302252632,7.912,2527.8,2527.7,0.0794102]
[1725302254301,10.3391,2527.8,2527.7,0.0794102]
[1725302254630,11.37301,2527.8,2527.7,0.0794102]
[1725302255937,8.94591,2527.8,2527.7,0.0794102]
[1725302257036,19.55142522,2527.8,2527.7,0.0794102]
[1725302261040,23.50742522,2527.8,2527.7,0.0794102]
[1725302261199,26.50742522,2527.8,2527.7,0.0794102]
[1725302261999,27.05742522,2527.8,2527.7,0.0794102]
[1725302262451,22.55142522,2527.8,2527.7,0.0794102]
[1725302279987,17.66539555,2527.8,2527.7,0.0794102]
[1725302280549,13.70939555,2527.8,2527.7,0.0794102]
[1725302281676,17.66539555,2527.8,2527.7,0.0794102]
[1725302284187,19.95999555,2527.8,2527.7,0.0794102]
[1725302284387,13.70939555,2527.8,2527.7,0.0794102]
[1725302284888,3.956,2527.8,2527.7,0.0794102]
[1725302285090,3.95586,2527.9,2527.7,0.0794102]
[1725302285091,3.95597,2527.9,2527.8,2.3425]
[1725302285493,5.71945555,2527.9,2527.7,0.0794102]
[1725302285697,7.912,2527.8,2527.7,0.0794102]
[1725302287489,11.868,2527.8,2527.7,0.0794102]
[1725302288165,16.10052288,2527.8,2527.7,0.0794102]
[1725302288902,3.95828,2526.4,2526.1,2.3425]
[1725302289252,3.95828,2526.4,2526.2,0.07415497]
[1725302289785,3.95835,2526.3,2526.2,0.07415497]
[1725302289964,3.95851,2526.2,2526.1,2.3425]
[1725302290168,7.91702,2526.2,2526.1,2.4291723]
[1725302290654,7.91702,2526.2,2526.1,0.0866723]
[1725302290854,7.91702,2526.2,2526.1,0.06196575]
[1725302291292,3.95923,2525.8,2525.3,2.4948]
[1725302291599,3.95923,2525.8,2525.3,6.45468]
[1725302292376,3.95923,2525.8,2525.3,2.4948]
[1725302292712,3.95923,2525.8,2525.3,3.23061918]
[1725302292868,8.19146288,2526.0,2525.3,3.23061918]
[1725302293205,3.95902,2525.9,2525.3,3.23061918]
[1725302293701,3.95915,2525.8,2525.3,3.23061918]
[1725302293903,8.19146288,2526.0,2525.3,3.23061918]
[1725302294265,3.95902,2525.9,2525.3,3.23061918]
[1725302294486,3.95902,2525.9,2525.4,0.06057684]
[1725302295079,1.12870685,2526.2,2525.5,6.26735]
[1725302295080,8.19108288,2526.2,2525.5,6.26735]
[1725302295289,3.95869,2526.1,2525.5,2.3078]
[1725302295510,3.95845,2526.3,2525.6,0.06036584]
[1725302295816,4.23252288,2526.2,2525.6,0.06036584]
[1725302296134,3.95906,2525.9,2525.6,0.06036584]
[1725302298070,3.95883,2526.0,2525.6,0.06036584]
[1725302298513,7.91755,2526.1,2525.6,0.06036584]
[1725302298736,3.95877,2526.1,2525.6,0.06036584]
[1725302298863,3.95883,2526.0,2525.6,0.06036584]
[1725302299075,3.95682,2527.3,2526.0,3.95882]
[1725302299271,3.95597,2527.9,2527.2,4.23252288]
[1725302299509,5.01248852,2528.5,2527.8,2.3078]
[1725302299718,3.95517,2528.4,2527.8,2.3078]
[1725302299954,3.95524,2528.3,2527.9,0.05794178]
[1725302300112,3.95504,2528.5,2527.9,0.05794178]
[1725302300113,0.395504,2528.4,2527.9,0.05794178]
[1725302300901,4.350574,2528.4,2527.9,0.05794178]
[1725302303720,16.09959288,2528.0,2527.9,0.05794178]
[1725302303915,13.75386217,2528.0,2527.9,0.05794178]
[1725302304143,7.91218,2527.8,2527.0,10.22214]
[1725302304313,7.91222,2527.8,2527.0,10.22214]
[1725302304515,7.91222,2527.8,2527.1,0.05878443]
[1725302304516,4.747402,2527.7,2527.1,0.05878443]
[1725302305115,0.791222,2527.7,2527.1,0.05878443]
[1725302305315,3.95624,2527.7,2527.1,0.05878443]
[1725302306119,3.95624,2527.7,2527.1,0.08636423]
[1725302306321,3.95607,2527.8,2527.1,4.04344423]
[1725302306740,7.91217,2527.8,2527.1,4.04344423]
[1725302306941,1.60995929,2528.0,2527.2,3.95693]
[1725302306942,3.95591,2527.9,2527.2,3.95693]
[1725302307152,3.95591,2527.9,2527.2,3.95684]
[1725302308096,3.95602,2527.8,2527.2,3.95684]
[1725302308756,3.95602,2527.8,2527.2,7.91368]
[1725302308964,3.9554,2528.2,2527.5,3.95646]
[1725302309164,3.95555,2528.1,2527.5,6.26847]
[1725302309373,3.95515,2528.4,2527.7,3.95608]
[1725302309548,7.91031,2528.4,2527.7,3.95608]
[1725302310098,3.95526,2528.3,2527.6,4.978708]
[1725302310398,3.95526,2528.3,2527.6,3.95621]
[1725302310563,3.95526,2528.3,2527.5,2.312]
[1725302310885,3.95554,2528.1,2527.5,6.26846]
[1725302312502,3.95526,2528.3,2527.6,3.9563]
[1725302312654,7.91057,2528.3,2527.6,4.978797]
[1725302313054,3.9554,2528.2,2527.6,4.978797]
[1725302314586,3.95502,2528.5,2527.8,3.95595]
[1725302314788,3.9551,2528.4,2527.7,4.6851497]
[1725302315096,3.9551,2528.4,2527.7,3.95607]
[1725302315268,3.9551,2528.4,2527.8,3.95592]
[1725302315473,3.9551,2528.4,2527.9,2.2881]
[1725302316964,3.95535,2528.3,2527.9,2.2881]
[1725302317303,3.9551,2528.4,2527.9,2.2881]
[1725302318566,7.90975,2528.6,2527.9,2.2881]
[1725302318834,9.12397729,2528.6,2527.9,6.24391]
[1725302319523,3.95492,2528.5,2527.9,6.24391]
[1725302320851,3.95507,2528.4,2527.9,2.2881]
[1725302322371,3.95507,2528.4,2527.9,2.912509]
[1725302322925,3.95545,2528.2,2527.9,2.2881]
[1725302330342,6.65332288,2528.5,2527.6,2.3644]
[1725302330528,3.95585,2528.0,2527.6,2.3644]
[1725302330729,3.95586,2527.9,2527.6,2.3644]
[1725302331740,3.95571,2528.0,2527.6,2.3644]
[1725302332969,7.91102,2528.2,2527.6,7.680735]
[1725302333176,3.95551,2528.2,2527.6,2.3644]
[1725302333337,3.95555,2528.1,2527.6,2.3644]
[1725302335475,7.91117,2528.1,2527.6,2.3644]
[1725302335630,3.95555,2528.1,2527.6,2.3644]
[1725302338182,3.95555,2528.1,2527.6,6.32067]
[1725302338338,3.95555,2528.1,2527.6,6.952748]
[1725302338938,3.95555,2528.1,2527.6,6.95171586]
[1725302340866,3.95555,2528.1,2527.6,2.99544586]
[1725302342136,3.95555,2528.1,2527.6,6.95175586]
[1725302342339,6.65332288,2528.8,2527.7,7.6244506]
[1725302342340,2.4208,2528.8,2527.7,7.6244506]
[1725302342650,8.18656288,2529.1,2528.0,2.4985]
[1725302342651,3.95498,2528.5,2528.0,2.4985]
[1725302343050,4.74595,2528.5,2528.0,2.4985]
[1725302343937,3.95514,2528.4,2528.0,2.4985]
[1725302344145,4.74596,2528.5,2528.0,2.4985]
[1725302344571,3.9544,2528.9,2528.2,3.95528]
[1725302344773,3.95454,2528.8,2528.3,2.368]
[1725302344941,4.745434,2528.8,2528.3,2.368]
[1725302345569,3.95461,2528.7,2528.3,2.368]
[1725302346945,3.9549,2528.6,2528.3,2.368]
[1725302347143,3.95492,2528.5,2528.3,2.368]
[1725302347583,7.90992,2528.5,2528.3,2.368]
[1725302348102,3.95492,2528.5,2528.3,2.368]
[1725302348386,7.90992,2528.5,2528.3,2.368]
[1725302348584,7.90991,2528.5,2528.3,2.368]
[1725302349000,3.95492,2528.5,2528.3,2.368]
[1725302350585,0.790964,2528.5,2527.9,2.3537]
[1725302350878,3.95556,2528.1,2527.9,2.3537]
[1725302351686,3.95547,2528.2,2527.9,2.3537]
[1725302353485,3.95562,2528.1,2527.9,2.3537]
[1725302354538,3.95569,2528.0,2527.6,5.3537]
[1725302355708,3.95554,2528.1,2527.6,9.30994]
[1725302355930,3.95554,2528.1,2527.6,5.3537]
[1725302356102,3.95554,2528.1,2527.6,8.53235323]
[1725302356499,3.95569,2528.0,2527.6,8.53235323]
[1725302358646,3.95554,2528.1,2527.6,12.48866323]
[1725302358827,3.9557,2528.0,2527.6,8.53235323]
[1725302359231,3.95555,2528.1,2527.6,12.48864323]
[1725302360388,3.9555,2528.2,2527.7,2.49559907]
[1725302360565,10.0,2532.8,2528.4,2.3537]
[1725302360566,2.4487,2529.2,2528.4,2.3537]
[1725302360751,3.95427,2529.0,2528.4,2.3537]
[1725302360949,3.95398,2529.1,2528.6,2.3537]
[1725302361249,3.95391,2529.2,2528.6,6.30845]
[1725302361450,2.4487,2529.5,2528.6,3.45380781]
[1725302361765,7.90845,2529.0,2528.6,2.3537]
[1725302361990,3.95421,2529.0,2528.6,2.3537]
[1725302362486,3.95389,2529.2,2528.6,6.30844]
[1725302362701,3.95389,2529.2,2528.6,6.94719304]
[1725302363194,3.95399,2529.1,2528.6,2.99245304]
[1725302363495,3.95399,2529.1,2528.6,2.3537]
[1725302364615,3.95389,2529.2,2528.6,6.30843]
[1725302364822,3.95389,2529.2,2528.7,0.9387516]
[1725302365818,3.95402,2529.1,2528.7,0.9387516]
[1725302366704,3.95414,2529.0,2528.6,2.43278596]
[1725302367027,3.95414,2529.0,2528.6,2.3537]
[1725302368224,3.95414,2529.0,2528.6,2.43278597]
[1725302368933,3.95366,2529.3,2528.8,6.43015]
[1725302369148,3.95366,2529.3,2528.9,0.07907755]
[1725302369711,3.9536,2529.4,2528.9,0.07907755]
[1725302369915,3.9536,2529.4,2528.9,4.03331755]
[1725302370108,3.9536,2529.4,2529.0,2.4834]
[1725302370437,3.953,2529.8,2529.3,6.43703]
[1725302370641,7.906,2529.8,2529.3,6.43703]
[1725302371164,3.953,2529.8,2529.3,6.43703]
[1725302371312,3.95298,2529.8,2529.3,3.522499]
[1725302371650,3.95305,2529.7,2529.3,3.522499]
[1725302372208,7.906,2529.8,2529.3,3.522499]
[1725302372413,3.95298,2529.8,2529.3,3.522499]
[1725302372640,7.90598,2529.8,2529.3,3.522499]
[1725302372851,3.95298,2529.8,2529.3,3.522499]
[1725302373766,3.95298,2529.8,2529.4,0.73832759]
[1725302374094,3.95298,2529.8,2529.5,2.4697]
[1725302374413,3.95268,2530.0,2529.5,2.4697]
[1725302374615,3.95292,2529.8,2529.5,2.4697]
[1725302375048,3.95306,2529.7,2529.5,2.4697]
[1725302375383,3.95319,2529.6,2529.5,2.4697]
[1725302377330,7.90638,2529.6,2529.5,2.4697]
[1725302379892,3.95241,2530.2,2529.5,2.4697]
[1725302380058,3.95303,2529.7,2529.5,2.4697]
[1725302381195,7.90571,2529.9,2529.5,2.4697]
[1725302381403,3.95292,2529.8,2529.5,2.4697]
[1725302381573,3.95292,2529.8,2529.5,2.54875881]